fUSD/lending_fUSD_20260227
["ID","MTS","AMOUNT","RATE_DAILY","PERIOD"]
[406777124,1772175044746,-150.0,0.0003147,2]
[406777125,1772175044756,-152.8213546,0.00031476,2]
[406777126,1772175044765,-300.0,0.00032612,34]
[406777127,1772175044774,-200.0,0.00032875,35]
[406777128,1772175044783,-2022.00864656,0.00032876,32]
[406777129,1772175044792,-375.95495348,0.00032877,5]
[406777130,1772175044801,-562.18013926,0.00032877,5]
[406777131,1772175044811,-9387.78,0.000329,2]
[406777132,1772175044820,-150.0,0.00033043,2]
[406777133,1772175044829,-1295.51,0.000331,14]
[406777134,1772175044838,-5562.28,0.000331,14]
[406777135,1772175044848,-4255.39,0.000331,14]
[406777136,1772175044857,-1000.0,0.00033344,14]
[406777137,1772175044866,-509.0,0.00033493,18]
[406777138,1772175044876,-851.0,0.00034264,11]
[406777139,1772175044885,-152.8213546,0.00034337,2]
[406777140,1772175044894,-150.0,0.00034696,2]
[406777141,1772175044903,-1500.0,0.00034795,2]
[406777142,1772175044913,-1206.19626865,0.00035,2]
[406777143,1772175044922,-9387.78,0.00035,2]
[406777144,1772175044931,-200.0,0.00035,3]
[406777145,1772175044940,-5118.29,0.00035041,2]
[406777146,1772175044949,-1000.0,0.00035068,7]
[406777147,1772175044958,-1000.0,0.00035342,7]
[406777148,1772175044967,-159.70078536,0.00035589,30]
[406777149,1772175044976,-162.35617804,0.00035589,30]
[406777150,1772175044985,-1000.0,0.00035616,14]
[406777151,1772175044994,-500.0,0.00035616,7]
[406777152,1772175045003,-460.74468726,0.00035616,7]
[406777153,1772175045013,-544.21519612,0.00035616,5]
[406777154,1772175045022,-509.0,0.00035818,20]
[406777155,1772175045031,-1000.0,0.0003589,14]
[406777156,1772175045040,-1000.0,0.00035988,2]
[406777157,1772175045049,-1000.0,0.00035988,2]
[406777158,1772175045058,-1000.0,0.00035988,2]
[406777159,1772175045067,-1000.0,0.00035988,2]
[406777160,1772175045076,-1000.0,0.00035988,2]
[406777161,1772175045085,-1000.0,0.0003599,2]
[406777162,1772175045094,-1000.0,0.0003599,2]
[406777163,1772175045104,-1000.0,0.0003599,2]
[406777164,1772175045116,-1000.0,0.0003599,2]
[406777165,1772175045134,-1000.0,0.0003599,2]
[406777166,1772175045145,-5562.28,0.00036,14]
[406777167,1772175045156,-5000.0,0.00036011,10]
[406777168,1772175045166,-297.82549676,0.00036045,120]
[406777169,1772175045177,-5000.0,0.00036069,10]
[406777170,1772175045189,-5000.0,0.00036078,10]
[406777171,1772175045199,-25000.0,0.00036086,10]
[406777172,1772175045208,-4255.39,0.000361,14]
[406777173,1772175045218,-5000.0,0.0003611,10]
[406777174,1772175045227,-5000.0,0.00036155,10]
[406777175,1772175045237,-1000.0,0.00036164,14]
[406777176,1772175045247,-25000.0,0.00036177,10]
[406777177,1772175045257,-191.03,0.0003619,10]
[406777178,1772175045266,-5000.0,0.00036193,10]
[406777179,1772175045276,-5000.0,0.00036253,10]
[406777180,1772175045286,-200.0,0.00036273,48]
[406777181,1772175045295,-5000.0,0.00036305,10]
[406777182,1772175045305,-5000.0,0.0003631,10]
[406777183,1772175045314,-1698.94,0.00036317,10]
[406777184,1772175045324,-25000.0,0.00036389,10]
[406777185,1772175045333,-5000.0,0.0003639,10]
[406777186,1772175045343,-2517.99,0.00036391,10]
[406777187,1772175045352,-1000.0,0.00036401,2]
[406777188,1772175045361,-150.0,0.0003643,2]
[406777189,1772175045371,-1000.0,0.00036438,14]
[406777190,1772175045380,-151.0,0.00036439,14]
[406777191,1772175045389,-5000.0,0.00036442,10]
[406777192,1772175045399,-25000.0,0.00036462,10]
[406777193,1772175045408,-5000.0,0.00036464,10]
[406777194,1772175045417,-9387.78,0.000365,2]
[406777195,1772175045427,-1041.0,0.0003653,2]
[406777196,1772175045436,-618.0,0.0003653,2]
[406777197,1772175045446,-3498.0,0.0003653,2]
[406777198,1772175045456,-1340.0,0.0003653,2]
[406777199,1772175045466,-150.0,0.0003653,2]
[406777200,1772175045476,-1277.0,0.0003653,2]
[406777201,1772175045485,-1211.0,0.0003653,2]
[406777202,1772175045494,-921.0,0.0003653,2]
[406777203,1772175045504,-4573.0,0.0003653,2]
[406777204,1772175045513,-5983.0,0.0003653,2]
[406777205,1772175045523,-5000.0,0.00036547,10]
[406777206,1772175045532,-1000.0,0.0003655,14]
[406777207,1772175045541,-300.0,0.00036571,45]
[406777208,1772175045550,-1250.5,0.00036573,10]
[406777209,1772175045560,-14956.31,0.00036599,10]
[406777210,1772175045570,-5000.0,0.00036653,10]
[406777211,1772175045580,-5000.0,0.00036653,10]
[406777212,1772175045589,-3577.25,0.00036717,10]
[406777213,1772175045599,-5000.0,0.00036717,10]
[406777214,1772175045608,-1250.51,0.0003675,10]
[406777215,1772175045618,-5000.0,0.00036761,10]
[406777216,1772175045627,-1657.9,0.00036762,10]
[406777217,1772175045636,-5000.0,0.00036809,10]
[406777218,1772175045647,-5000.0,0.00036825,10]
[406777219,1772175045658,-160.67,0.00036828,10]
[406777220,1772175045667,-177.86,0.00036876,2]
[406777221,1772175045677,-5000.0,0.00036879,10]
[406777222,1772175045687,-911.9364,0.00036888,7]
[406777224,1772175045698,-4724.97,0.00036911,10]
[406777225,1772175045710,-1313.54,0.00036912,10]
[406777226,1772175045719,-5000.0,0.00036915,10]
[406777227,1772175045728,-1388.0,0.00036915,11]
[406777228,1772175045738,-25000.0,0.00036917,10]
[406777229,1772175045747,-2518.0,0.00036926,10]
[406777230,1772175045758,-5000.0,0.00036959,10]
[406777231,1772175045769,-5000.0,0.00036988,10]
[406777232,1772175045779,-5000.0,0.0003699,10]
[406777233,1772175045789,-5562.28,0.00037,14]
[406777234,1772175045798,-177.86,0.00037153,2]
[406777235,1772175045807,-4255.39,0.000372,14]
[406777236,1772175045817,-151.25687106,0.000372,120]
[406777237,1772175045826,-151.25687105,0.000372,120]
[406777238,1772175045835,-151.25687105,0.000372,120]
[406777239,1772175045844,-151.25687105,0.000372,120]
[406777241,1772175046041,-199.86,0.0003726,120]
[406777242,1772175046051,-177.85107403,0.0003743,2]
[406777243,1772175046061,-344.487,0.00037707,49]
[406777244,1772175046071,-2291.888,0.00037707,49]
[406777245,1772175046081,-170.0,0.00037868,120]
[406777246,1772175046091,-152.0,0.00037873,3]
[406777247,1772175046100,-14804.97796802,0.00037887,7]
[406777249,1772175046334,-1086.4395005,0.00037887,7]
[406777254,1772175046669,-219.985,0.0003653,2]
[406777255,1772175046679,-656.47757398,0.00037887,7]
[406777256,1772175046774,-84060.38378831,0.00037887,7]
[406777257,1772175046784,-69717.47646364,0.00037887,7]
[406777258,1772175046793,-9387.78,0.000379,2]
[406777259,1772175046802,-1523.98,0.00038,120]
[406777260,1772175046811,-174.00015664,0.00038,7]
[406777261,1772175046821,-160.0,0.00038,7]
[406777262,1772175046833,-1250.99,0.00038034,30]
[406777263,1772175046843,-509.0,0.00038144,22]
[406777264,1772175046852,-150.0,0.00038252,2]
[406777265,1772175046864,-1295.51,0.000383,14]
[406777266,1772175046876,-1008.92913454,0.000387,2]
[406777267,1772175046887,-579.5,0.00038759,7]
[406777268,1772175046896,-385.96002226,0.00038904,5]
[406777269,1772175046906,-5562.28,0.00039,14]
[406777270,1772175046917,-2000.0,0.00039,120]
[406777271,1772175046927,-605.23,0.00039,120]
[406777272,1772175046938,-4255.39,0.000393,14]
[406777273,1772175046947,-3203.89,0.000393,30]
[406777274,1772175046957,-1040.2,0.00039442,30]
[406777275,1772175046967,-1041.0,0.0003953,2]
[406777276,1772175046977,-618.0,0.0003953,2]
[406777277,1772175046987,-3498.0,0.0003953,2]
[406777278,1772175046997,-1340.0,0.0003953,2]
[406777279,1772175047006,-150.0,0.0003953,2]
[406777280,1772175047016,-1277.0,0.0003953,2]
[406777281,1772175047025,-1211.0,0.0003953,2]
[406777282,1772175047036,-921.0,0.0003953,2]
[406777283,1772175047045,-5983.0,0.0003953,2]
[406777284,1772175047055,-200.0,0.00039671,72]
[406777285,1772175047064,-150.0,0.000397,120]
[406777286,1772175047074,-151.0,0.00039754,14]
[406777287,1772175047083,-151.0,0.00039756,13]
[406777288,1772175047093,-151.0,0.00039756,13]
[406777289,1772175047103,-151.0,0.00039756,13]
[406777290,1772175047116,-151.0,0.00039756,13]
[406777291,1772175047126,-500.0,0.00039756,13]
[406777292,1772175047135,-151.0,0.00039756,13]
[406777293,1772175047144,-500.0,0.00039756,13]
[406777294,1772175047155,-500.0,0.00039756,13]
[406777295,1772175047164,-151.0,0.00039756,13]
[406777296,1772175047174,-500.0,0.00039756,13]
[406777297,1772175047184,-395.11120325,0.00039756,13]
[406777298,1772175047193,-151.0,0.00039756,13]
[406777299,1772175047202,-500.0,0.00039756,13]
[406777300,1772175047212,-151.0,0.00039756,13]
[406777301,1772175047221,-500.0,0.00039756,13]
[406777302,1772175047230,-500.0,0.00039756,13]
[406777303,1772175047239,-151.0,0.00039756,13]
[406777304,1772175047249,-500.0,0.00039756,13]
[406777305,1772175047257,-234.50005133,0.00039756,13]
[406777306,1772175047267,-202.72622012,0.00039756,13]
[406777307,1772175047276,-500.0,0.00039756,13]
[406777308,1772175047285,-500.0,0.00039756,13]
[406777309,1772175047294,-500.0,0.00039756,13]
[406777310,1772175047303,-500.0,0.00039756,13]
[406777311,1772175047312,-500.0,0.00039756,13]
[406777312,1772175047320,-500.0,0.00039756,13]
[406777313,1772175047330,-500.0,0.00039756,13]
[406777314,1772175047338,-500.0,0.00039756,13]
[406777315,1772175047348,-500.0,0.00039756,13]
[406777316,1772175047357,-500.0,0.00039756,13]
[406777317,1772175047367,-500.0,0.00039756,13]
[406777318,1772175047376,-500.0,0.00039756,13]
[406777319,1772175047386,-500.0,0.00039756,13]
[406777320,1772175047394,-500.0,0.00039756,13]
[406777321,1772175047404,-500.0,0.00039756,13]
[406777322,1772175047413,-500.0,0.00039756,13]
[406777323,1772175047422,-500.0,0.00039756,13]
[406777324,1772175047431,-500.0,0.00039756,13]
[406777325,1772175047440,-500.0,0.00039756,13]
[406777326,1772175047449,-500.0,0.00039756,13]
[406777327,1772175047458,-500.0,0.00039756,13]
[406777328,1772175047467,-500.0,0.00039756,13]
[406777329,1772175047477,-151.0,0.00039756,13]
[406777330,1772175047486,-151.0,0.00039756,13]
[406777331,1772175047495,-151.0,0.00039756,13]
[406777332,1772175047504,-151.0,0.00039756,13]
[406777333,1772175047514,-151.0,0.00039756,13]
[406777334,1772175047523,-151.0,0.00039756,13]
[406777335,1772175047533,-151.0,0.00039756,13]
[406777336,1772175047542,-151.0,0.00039756,13]
[406777337,1772175047551,-151.0,0.00039756,13]
[406777338,1772175047560,-151.0,0.00039756,13]
[406777339,1772175047569,-151.0,0.00039756,13]
[406777340,1772175047578,-151.0,0.00039756,13]
[406777341,1772175047587,-151.0,0.00039756,13]
[406777342,1772175047596,-151.0,0.00039756,13]
[406777343,1772175047606,-150.0,0.00039756,2]
[406777344,1772175047615,-150.0,0.00039756,2]
[406777345,1772175047624,-150.0,0.00039756,2]
[406777346,1772175047633,-150.0,0.00039756,2]
[406777347,1772175047643,-150.0,0.00039756,2]
[406777348,1772175047652,-234.63198769,0.00039756,2]
[406777349,1772175047661,-9802.1525516,0.00039757,2]
[406777350,1772175047671,-794385.52013197,0.00039757,2]
[406777351,1772175368834,970.48795508,8.991e-05,3]
[406777359,1772176232061,-150.0,8.699e-05,2]
[406777361,1772176232071,-1200.0,8.699e-05,2]
[406777362,1772176232081,-250.0,8.7e-05,2]
[406777363,1772176232091,-2063.47391345,8.7e-05,2]
[406777364,1772176232101,-200.28299612,8.7e-05,2]
[406777365,1772176232113,-8334.2635688,8.7e-05,2]
[406777366,1772176232123,-4056.11841204,8.7e-05,2]
[406777367,1772176232133,-160.15,8.7e-05,2]
[406777368,1772176232142,-1864.38198671,8.7e-05,2]
[406777369,1772176232152,-2474.228,8.714e-05,2]
[406777370,1772176232161,-387.355,8.714e-05,2]
[406777371,1772176232171,-565.56660851,8.791e-05,2]
[406777372,1772176232180,-292.1845485,8.791e-05,2]
[406777373,1772176232190,-500.0,8.791e-05,2]
[406777374,1772176232200,-34197.96319522,8.792e-05,2]
[406777375,1772176232487,-23503.75457197,8.792e-05,2]
[406777376,1772176232514,-446.90007245,8.792e-05,2]
[406777377,1772176238400,-346.32993633,8.791e-05,2]
[406777378,1772176238410,-812817.94939492,8.792e-05,2]
[406777379,1772176238421,-346.60967524,8.792e-05,2]
[406777380,1772176238432,-531.13294994,8.792e-05,2]
[406777412,1772176240307,-1059.80161734,8.792e-05,2]
[406777413,1772176240817,-943827.75792304,8.792e-05,2]
[406777414,1772176240829,-1091.00000001,8.792e-05,2]
[406777416,1772176243255,-1748.445,8.792e-05,2]
[406777417,1772176243484,-70424.5763376,8.792e-05,2]
[406777418,1772176246210,-7880.78035758,8.792e-05,2]
[406777419,1772176246438,-302.0,8.792e-05,2]
[406777420,1772176873929,-9000000.0,0.00045953,30]
[406777421,1772176878042,-4375122.83987975,0.00045953,30]
[406777422,1772176878084,-6223.92125753,0.00045953,30]
[406777423,1772176878125,-500.0,0.00045953,120]
[406777424,1772176878166,-684.61,0.00045953,120]
[406777425,1772176878207,-684.61,0.00045953,120]
[406777426,1772176878253,-684.61,0.00045953,120]
[406777427,1772176878303,-684.61,0.00045953,120]
[406777428,1772176878343,-684.61,0.00045953,120]
[406777429,1772176878382,-684.61,0.00045953,120]
[406777430,1772176878421,-684.61,0.00045953,120]
[406777431,1772176878460,-684.61,0.00045953,120]
[406777432,1772176878499,-684.61,0.00045953,120]
[406777433,1772176878541,-684.61,0.00045953,120]
[406777434,1772176878582,-684.61,0.00045953,120]
[406777435,1772176878626,-684.61,0.00045953,120]
[406777436,1772176878670,-684.61,0.00045953,120]
[406777437,1772176878714,-684.61,0.00045953,120]
[406777438,1772176878758,-684.61,0.00045953,120]
[406777439,1772176878802,-684.61,0.00045953,120]
[406777440,1772176878845,-684.61,0.00045953,120]
[406777441,1772176878890,-684.61,0.00045953,120]
[406777442,1772176878935,-684.61,0.00045953,120]
[406777443,1772176878978,-684.61,0.00045953,120]
[406777444,1772176879022,-684.61,0.00045953,120]
[406777445,1772176879065,-684.61,0.00045953,120]
[406777446,1772176879326,-684.61,0.00045953,120]
[406777447,1772176879370,-684.76831511,0.00045953,120]
[406777448,1772176879413,-150.0,0.00045953,120]
[406777449,1772176879458,-150.0,0.00045953,120]
[406777450,1772176879503,-150.0,0.00045953,120]
[406777451,1772176879548,-500.0,0.00045953,120]
[406777452,1772176879595,-500.0,0.00045953,120]
[406777453,1772176879641,-500.0,0.00045953,120]
[406777454,1772176879694,-500.0,0.00045953,120]
[406777455,1772176879740,-500.0,0.00045953,120]
[406777456,1772176879784,-500.0,0.00045953,120]
[406777457,1772176879828,-431.59777084,0.00045953,120]
[406777458,1772176879872,-500.0,0.00045953,120]
[406777459,1772176879920,-500.0,0.00045953,120]
[406777460,1772176879966,-500.0,0.00045953,120]
[406777461,1772176880014,-500.0,0.00045953,120]
[406777462,1772176880060,-500.0,0.00045953,120]
[406777463,1772176880110,-500.0,0.00045953,120]
[406777464,1772176880160,-500.0,0.00045953,120]
[406777465,1772176880207,-500.0,0.00045953,120]
[406777466,1772176880254,-224.28502151,0.00045953,120]
[406777467,1772176880301,-500.0,0.00045953,120]
[406777468,1772176880346,-500.0,0.00045953,120]
[406777469,1772176880395,-500.0,0.00045953,120]
[406777470,1772176880440,-500.0,0.00045953,120]
[406777471,1772176880485,-500.0,0.00045953,120]
[406777472,1772176880528,-500.0,0.00045953,120]
[406777473,1772176880574,-500.0,0.00045953,120]
[406777474,1772176880623,-500.0,0.00045953,120]
[406777475,1772176880670,-500.0,0.00045953,120]
[406777476,1772176880717,-500.0,0.00045953,120]
[406777477,1772176880762,-349.06972904,0.00045953,120]
[406777478,1772176880811,-500.0,0.00045953,120]
[406777479,1772176880856,-500.0,0.00045953,120]
[406777480,1772176880899,-500.0,0.00045953,120]
[406777481,1772176880942,-500.0,0.00045953,120]
[406777482,1772176880983,-500.0,0.00045953,120]
[406777483,1772176881026,-500.0,0.00045953,120]
[406777484,1772176881077,-500.0,0.00045953,120]
[406777485,1772176881125,-500.0,0.00045953,120]
[406777486,1772176881178,-500.0,0.00045953,120]
[406777487,1772176881228,-500.0,0.00045953,120]
[406777488,1772176881274,-500.0,0.00045953,120]
[406777489,1772176881319,-500.0,0.00045953,120]
[406777490,1772176881364,-549.48868975,0.00045953,120]
[406777491,1772176881409,-500.0,0.00045953,120]
[406777492,1772176881453,-500.0,0.00045953,120]
[406777493,1772176881496,-500.0,0.00045953,120]
[406777494,1772176881549,-500.0,0.00045953,120]
[406777495,1772176881597,-500.0,0.00045953,120]
[406777496,1772176881643,-500.0,0.00045953,120]
[406777497,1772176881692,-500.0,0.00045953,120]
[406777498,1772176881741,-500.0,0.00045953,120]
[406777499,1772176881789,-500.0,0.00045953,120]
[406777500,1772176881834,-433.01748631,0.00045953,120]
[406777501,1772176881880,-500.0,0.00045953,120]
[406777502,1772176881927,-500.0,0.00045953,120]
[406777503,1772176881983,-500.0,0.00045953,120]
[406777504,1772176882032,-500.0,0.00045953,120]
[406777505,1772176882082,-500.0,0.00045953,120]
[406777506,1772176882127,-500.0,0.00045953,120]
[406777507,1772176882172,-500.0,0.00045953,120]
[406777508,1772176882213,-500.0,0.00045953,120]
[406777509,1772176882254,-292.64483276,0.00045953,120]
[406777510,1772176882294,-500.0,0.00045953,120]
[406777511,1772176882335,-199.94824131,0.00045953,120]
[406777512,1772176882373,-505.34857521,0.00045953,120]
[406777513,1772176882412,-500.0,0.00045953,120]
[406777514,1772176882453,-500.0,0.00045953,120]
[406777515,1772176882494,-155.2975433,0.00045953,120]
[406777516,1772176882535,-500.0,0.00045953,120]
[406777517,1772176882578,-500.0,0.00045953,120]
[406777518,1772176882622,-500.0,0.00045953,120]
[406777519,1772176882844,-500.0,0.00045953,120]
[406777520,1772176882889,-500.0,0.00045953,120]
[406777521,1772176882932,-500.0,0.00045953,120]
[406777522,1772176882974,-500.0,0.00045953,120]
[406777523,1772176883012,-500.0,0.00045953,120]
[406777524,1772176883055,-500.0,0.00045953,120]
[406777525,1772176883094,-519.88107741,0.00045953,120]
[406777526,1772176883134,-500.0,0.00045953,120]
[406777527,1772176883177,-500.0,0.00045953,120]
[406777528,1772176883217,-500.0,0.00045953,120]
[406777529,1772176883261,-500.0,0.00045953,120]
[406777530,1772176883305,-500.0,0.00045953,120]
[406777531,1772176883346,-500.0,0.00045953,120]
[406777532,1772176883385,-500.0,0.00045953,120]
[406777533,1772176883423,-500.0,0.00045953,120]
[406777534,1772176883461,-500.0,0.00045953,120]
[406777535,1772176883499,-476.83195886,0.00045953,120]
[406777536,1772176883538,-500.0,0.00045953,120]
[406777537,1772176883579,-500.0,0.00045953,120]
[406777538,1772176883620,-500.0,0.00045953,120]
[406777539,1772176883666,-500.0,0.00045953,120]
[406777540,1772176883714,-500.0,0.00045953,120]
[406777541,1772176883761,-500.0,0.00045953,120]
[406777542,1772176883808,-500.0,0.00045953,120]
[406777543,1772176883852,-500.0,0.00045953,120]
[406777544,1772176883899,-500.0,0.00045953,120]
[406777545,1772176883944,-500.0,0.00045953,120]
[406777546,1772176883990,-500.0,0.00045953,120]
[406777547,1772176884035,-500.0,0.00045953,120]
[406777548,1772176884090,-500.0,0.00045953,120]
[406777549,1772176884140,-156.41038557,0.00045953,120]
[406777550,1772176884191,-500.0,0.00045953,120]
[406777551,1772176884241,-500.0,0.00045953,120]
[406777552,1772176884290,-500.0,0.00045953,120]
[406777553,1772176884335,-519.27677545,0.00045953,120]
[406777554,1772176884380,-7026.93,0.00045953,120]
[406777555,1772176884426,-7026.93,0.00045953,120]
[406777556,1772176884477,-7026.93,0.00045953,120]
[406777557,1772176884523,-7026.93,0.00045953,120]
[406777558,1772176884570,-7026.93,0.00045953,120]
[406777559,1772176884620,-7026.93,0.00045953,120]
[406777560,1772176884670,-7026.93,0.00045953,120]
[406777561,1772176884718,-7026.93,0.00045953,120]
[406777562,1772176884774,-7026.93,0.00045953,120]
[406777563,1772176884833,-7026.93,0.00045953,120]
[406777564,1772176884886,-7026.93,0.00045953,120]
[406777565,1772176884936,-7026.93,0.00045953,120]
[406777566,1772176884986,-7026.93,0.00045953,120]
[406777567,1772176885034,-7026.93,0.00045953,120]
[406777568,1772176885083,-7026.93,0.00045953,120]
[406777569,1772176885131,-7026.93,0.00045953,120]
[406777570,1772176885182,-7026.93,0.00045953,120]
[406777571,1772176885232,-7026.93,0.00045953,120]
[406777572,1772176885281,-7026.93,0.00045953,120]
[406777573,1772176885332,-7026.93,0.00045953,120]
[406777574,1772176885380,-7026.93,0.00045953,120]
[406777575,1772176885429,-7026.93,0.00045953,120]
[406777576,1772176885479,-7026.93,0.00045953,120]
[406777577,1772176885529,-7027.07880003,0.00045953,120]
[406777578,1772176885585,-729.49,0.00045953,120]
[406777579,1772176885643,-729.49,0.00045953,120]
[406777580,1772176885704,-729.49,0.00045953,120]
[406777581,1772176885771,-729.49,0.00045953,120]
[406777582,1772176885826,-729.49,0.00045953,120]
[406777583,1772176885880,-729.49,0.00045953,120]
[406777584,1772176885931,-729.49,0.00045953,120]
[406777585,1772176885980,-729.49,0.00045953,120]
[406777586,1772176886031,-729.49,0.00045953,120]
[406777587,1772176886089,-729.49,0.00045953,120]
[406777588,1772176886147,-729.49,0.00045953,120]
[406777589,1772176886205,-729.49,0.00045953,120]
[406777590,1772176886265,-729.49,0.00045953,120]
[406777591,1772176886325,-729.49,0.00045953,120]
[406777592,1772176886381,-729.49,0.00045953,120]
[406777593,1772176886434,-729.49,0.00045953,120]
[406777594,1772176886486,-729.49,0.00045953,120]
[406777595,1772176886537,-729.49,0.00045953,120]
[406777596,1772176886590,-729.49,0.00045953,120]
[406777597,1772176886641,-729.49,0.00045953,120]
[406777598,1772176886697,-729.49,0.00045953,120]
[406777599,1772176886751,-729.49,0.00045953,120]
[406777600,1772176886807,-729.49,0.00045953,120]
[406777601,1772176886867,-729.54477788,0.00045953,120]
[406777602,1772176886929,-500.0,0.00045953,120]
[406777603,1772176886992,-638.86524357,0.00045953,120]
[406777604,1772176887055,-229.75766525,0.00045953,120]
[406777605,1772176887294,-500.0,0.00045953,120]
[406777606,1772176887351,-500.0,0.00045953,120]
[406777607,1772176887403,-500.0,0.00045953,120]
[406777608,1772176887455,-500.0,0.00045953,120]
[406777609,1772176887508,-171.36,0.00045953,120]
[406777610,1772176887561,-500.0,0.00045953,120]
[406777611,1772176887614,-500.0,0.00045953,120]
[406777612,1772176887673,-500.0,0.00045953,120]
[406777613,1772176887728,-500.0,0.00045953,120]
[406777614,1772176887786,-500.0,0.00045953,120]
[406777615,1772176887838,-500.0,0.00045953,120]
[406777616,1772176887893,-529.63629732,0.00045953,120]
[406777617,1772176887948,-500.0,0.00045953,120]
[406777618,1772176888003,-500.0,0.00045953,120]
[406777619,1772176888063,-500.0,0.00045953,120]
[406777620,1772176888125,-500.0,0.00045953,120]
[406777621,1772176888185,-500.0,0.00045953,120]
[406777622,1772176888245,-500.0,0.00045953,120]
[406777623,1772176888309,-500.0,0.00045953,120]
[406777624,1772176888371,-500.0,0.00045953,120]
[406777625,1772176888429,-500.0,0.00045953,120]
[406777626,1772176888486,-500.0,0.00045953,120]
[406777627,1772176888541,-167.29726463,0.00045953,120]
[406777628,1772176888595,-500.0,0.00045953,120]
[406777629,1772176888657,-500.0,0.00045953,120]
[406777630,1772176888719,-500.0,0.00045953,120]
[406777631,1772176888781,-500.0,0.00045953,120]
[406777632,1772176888845,-581.14959049,0.00045953,120]
[406777633,1772176888906,-500.0,0.00045953,120]
[406777634,1772176888973,-500.0,0.00045953,120]
[406777635,1772176889035,-500.0,0.00045953,120]
[406777636,1772176889099,-500.0,0.00045953,120]
[406777637,1772176889159,-541.53859591,0.00045953,120]
[406777638,1772176889217,-500.0,0.00045953,120]
[406777639,1772176889271,-500.0,0.00045953,120]
[406777640,1772176889325,-500.0,0.00045953,120]
[406777641,1772176889383,-500.0,0.00045953,120]
[406777642,1772176889436,-500.0,0.00045953,120]
[406777643,1772176889490,-500.0,0.00045953,120]
[406777644,1772176889546,-500.0,0.00045953,120]
[406777645,1772176889606,-500.0,0.00045953,120]
[406777646,1772176889666,-500.0,0.00045953,120]
[406777647,1772176889724,-500.0,0.00045953,120]
[406777648,1772176889783,-500.0,0.00045953,120]
[406777649,1772176889852,-500.0,0.00045953,120]
[406777650,1772176889911,-500.0,0.00045953,120]
[406777651,1772176889967,-555.0616032,0.00045953,120]
[406777652,1772176890024,-500.0,0.00045953,120]
[406777653,1772176890086,-582.99611738,0.00045953,120]
[406777654,1772176890148,-500.0,0.00045953,120]
[406777655,1772176890204,-500.0,0.00045953,120]
[406777656,1772176890265,-500.0,0.00045953,120]
[406777657,1772176890325,-500.0,0.00045953,120]
[406777658,1772176890386,-582.19738031,0.00045953,120]
[406777659,1772176890444,-500.0,0.00045953,120]
[406777660,1772176890499,-541.59084892,0.00045953,120]
[406777661,1772176890552,-500.0,0.00045953,120]
[406777662,1772176890607,-500.0,0.00045953,120]
[406777663,1772176890663,-500.0,0.00045953,120]
[406777664,1772176890727,-500.0,0.00045953,120]
[406777665,1772176890788,-500.0,0.00045953,120]
[406777666,1772176890847,-500.0,0.00045953,120]
[406777667,1772176890907,-500.0,0.00045953,120]
[406777668,1772176890967,-517.40522291,0.00045953,120]
[406777669,1772176891028,-500.0,0.00045953,120]
[406777670,1772176891081,-500.0,0.00045953,120]